fUSD/lending_fUSD_20260420
["ID","MTS","AMOUNT","RATE_DAILY","PERIOD"]
[420878811,1776694281904,-5800.0,0.00021433,2]
[420878812,1776694281914,-5800.0,0.00021433,2]
[420878813,1776694281924,-5800.0,0.00021441,2]
[420878814,1776694281933,-5800.0,0.00021441,2]
[420878815,1776694281943,-5800.0,0.00021441,2]
[420878816,1776694281953,-617.74059009,0.00021455,14]
[420878817,1776694281963,-58091.45040521,0.000215,2]
[420878818,1776694281972,-224.2174579,0.000215,2]
[420878819,1776694281982,-151.0,0.000215,2]
[420878820,1776694281991,-151.0,0.000215,2]
[420878821,1776694282001,-133546.58,0.000215,2]
[420878822,1776694282012,-259.81035114,0.00021546,2]
[420878823,1776694282022,-151.0,0.00021587,2]
[420878824,1776694282032,-151.0,0.00021588,2]
[420878825,1776694282041,-193.15,0.00021593,2]
[420878826,1776694282051,-151.0,0.00021595,2]
[420878827,1776694282061,-151.0,0.00021598,2]
[420878828,1776694282071,-411.32441645,0.00021668,14]
[420878829,1776694282081,-352.0,0.00021705,3]
[420878830,1776694282091,-502.0,0.0002171,9]
[420878831,1776694282101,-568.11,0.0002178,2]
[420878832,1776694282112,-183.38,0.00021781,2]
[420878833,1776694282123,-332.33,0.00021795,2]
[420878834,1776694282132,-794.47,0.00021806,2]
[420878835,1776694282143,-617.74059009,0.00021837,14]
[420878836,1776694282154,-205.94,0.00021883,2]
[420878837,1776694282164,-211.59583461,0.0002189,2]
[420878838,1776694282174,-11031.73,0.000219,7]
[420878839,1776694282184,-311.17561746,0.00021904,14]
[420878840,1776694282194,-500.0,0.00021918,2]
[420878841,1776694282204,-558.15072394,0.00021918,2]
[420878842,1776694282214,-3063.07,0.00021918,2]
[420878843,1776694282224,-5000.0,0.00021918,2]
[420878844,1776694282233,-250.0,0.00021918,2]
[420878845,1776694282243,-250.0,0.00021918,2]
[420878846,1776694282252,-250.0,0.00021918,2]
[420878847,1776694282262,-250.0,0.00021918,2]
[420878848,1776694282272,-250.0,0.00021918,2]
[420878849,1776694282281,-250.0,0.00021918,2]
[420878850,1776694282291,-250.0,0.00021918,2]
[420878851,1776694282301,-250.0,0.00021918,2]
[420878852,1776694282311,-250.0,0.00021918,2]
[420878853,1776694282320,-250.0,0.00021918,2]
[420878854,1776694282330,-250.0,0.00021918,2]
[420878855,1776694282340,-250.0,0.00021918,2]
[420878856,1776694282350,-250.0,0.00021918,2]
[420878857,1776694282361,-250.0,0.00021918,2]
[420878858,1776694282371,-250.0,0.00021918,2]
[420878859,1776694282383,-250.0,0.00021918,2]
[420878860,1776694282393,-250.0,0.00021918,2]
[420878861,1776694282407,-250.0,0.00021918,2]
[420878862,1776694282417,-250.0,0.00021918,2]
[420878863,1776694282428,-250.0,0.00021918,2]
[420878864,1776694282438,-151.0,0.00021918,2]
[420878865,1776694282448,-151.0,0.00021918,2]
[420878866,1776694282459,-151.0,0.00021918,2]
[420878867,1776694282469,-151.0,0.00021918,2]
[420878868,1776694282480,-151.0,0.00021918,2]
[420878869,1776694282490,-151.0,0.00021918,2]
[420878870,1776694282501,-151.0,0.00021918,2]
[420878871,1776694282511,-151.0,0.00021918,2]
[420878872,1776694282522,-151.0,0.00021918,2]
[420878873,1776694282533,-151.0,0.00021918,2]
[420878874,1776694282544,-151.0,0.00021918,2]
[420878875,1776694282554,-289.858864,0.00021918,2]
[420878876,1776694282565,-328.485109,0.00021918,2]
[420878877,1776694282574,-328.485109,0.00021918,2]
[420878878,1776694282584,-328.485109,0.00021918,2]
[420878879,1776694282594,-328.485109,0.00021918,2]
[420878880,1776694282604,-328.485109,0.00021918,2]
[420878881,1776694282614,-328.485109,0.00021918,2]
[420878882,1776694282624,-328.485109,0.00021918,2]
[420878883,1776694282635,-328.485109,0.00021918,2]
[420878884,1776694282645,-328.485109,0.00021918,2]
[420878885,1776694282655,-328.485109,0.00021918,2]
[420878886,1776694282665,-328.485109,0.00021918,2]
[420878887,1776694282675,-328.485109,0.00021918,2]
[420878888,1776694282686,-328.485109,0.00021918,2]
[420878889,1776694282695,-328.485109,0.00021918,2]
[420878890,1776694282705,-328.485109,0.00021918,2]
[420878891,1776694282716,-328.485109,0.00021918,2]
[420878892,1776694282726,-328.485109,0.00021918,2]
[420878893,1776694282739,-328.485109,0.00021918,2]
[420878894,1776694282750,-328.485109,0.00021918,2]
[420878895,1776694282760,-328.485107,0.00021918,2]
[420878896,1776694282770,-1000.0,0.00021918,2]
[420878897,1776694282781,-1000.0,0.00021918,2]
[420878898,1776694282791,-1000.0,0.00021918,2]
[420878899,1776694283023,-1000.0,0.00021918,2]
[420878900,1776694283033,-1000.0,0.00021918,2]
[420878901,1776694283043,-1000.0,0.00021918,2]
[420878902,1776694283053,-1000.0,0.00021918,2]
[420878903,1776694283063,-1000.0,0.00021918,2]
[420878904,1776694283074,-166.0,0.00021918,2]
[420878905,1776694283084,-650.0,0.00021918,2]
[420878906,1776694283094,-166.0,0.00021918,2]
[420878907,1776694283104,-166.0,0.00021918,2]
[420878908,1776694283114,-172.0,0.00021918,2]
[420878909,1776694283124,-166.0,0.00021918,2]
[420878910,1776694283135,-650.0,0.00021918,2]
[420878911,1776694283146,-650.0,0.00021918,2]
[420878912,1776694283159,-166.0,0.00021918,2]
[420878913,1776694283169,-166.0,0.00021918,2]
[420878914,1776694283180,-166.0,0.00021918,2]
[420878915,1776694283190,-166.0,0.00021918,2]
[420878916,1776694283200,-3388.0,0.00021918,10]
[420878917,1776694283210,-1920.7172624,0.00021918,10]
[420878918,1776694283221,-224.26913092,0.00021918,10]
[420878919,1776694283231,-250.0,0.00021918,30]
[420878920,1776694283240,-500.0,0.00021918,120]
[420878921,1776694283250,-2017.48496954,0.00022,2]
[420878922,1776694283260,-363179.97454285,0.00022,4]
[420878923,1776694283271,-164.92,0.00022,2]
[420878924,1776694283281,-160.0,0.00022,2]
[420878925,1776694283291,-500.0,0.00022,2]
[420878926,1776694283301,-500.0,0.00022,2]
[420878927,1776694283310,-500.0,0.00022,2]
[420878928,1776694283320,-500.0,0.00022,2]
[420878929,1776694283329,-500.0,0.00022,2]
[420878930,1776694283339,-500.0,0.00022,2]
[420878931,1776694283348,-253.71843632,0.00022,2]
[420878932,1776694283358,-151.0,0.00022,2]
[420878933,1776694283367,-160.0,0.00022,10]
[420878934,1776694283377,-185.0,0.00022,3]
[420878935,1776694283386,-352.0,0.00022,3]
[420878936,1776694283396,-205.91353,0.00022027,14]
[420878937,1776694283411,-262.86543985,0.00022032,14]
[420878938,1776694283421,-411.32441645,0.00022037,30]
[420878939,1776694283431,-162.0,0.00022062,2]
[420878940,1776694283441,-499.24860625,0.000221,2]
[420878941,1776694283450,-3702.29,0.000221,7]
[420878942,1776694283460,-242.62367968,0.0002211,2]
[420878943,1776694283470,-500.0,0.00022164,120]
[420878944,1776694283480,-1205.93,0.000222,7]
[420878945,1776694283489,-617.74059009,0.00022218,30]
[420878946,1776694283499,-256.42,0.00022235,30]
[420878947,1776694283508,-2200.0,0.00022254,7]
[420878948,1776694283518,-151.15582876,0.00022265,60]
[420878949,1776694283527,-1576.0,0.00022382,2]
[420878950,1776694283537,-162.0,0.00022382,2]
[420878951,1776694283546,-162.0,0.00022382,2]
[420878952,1776694283555,-151.0,0.00022401,2]
[420878953,1776694283565,-183.38,0.00022405,2]
[420878954,1776694283574,-411.32441645,0.00022407,30]
[420878955,1776694283584,-151.0,0.00022407,2]
[420878956,1776694283594,-151.0,0.00022407,2]
[420878957,1776694283603,-151.0,0.00022407,2]
[420878958,1776694283613,-151.0,0.00022407,2]
[420878959,1776694283622,-151.0,0.00022409,2]
[420878960,1776694283632,-151.0,0.0002241,2]
[420878961,1776694283641,-151.0,0.0002241,2]
[420878962,1776694283651,-151.0,0.0002241,2]
[420878963,1776694283660,-500.0,0.00022411,120]
[420878964,1776694283670,-151.0,0.00022416,2]
[420878965,1776694283681,-151.0,0.00022419,2]
[420878966,1776694283690,-750.0,0.00022466,2]
[420878967,1776694283700,-750.0,0.00022466,2]
[420878968,1776694283710,-750.0,0.00022466,2]
[420878969,1776694283719,-35854.68385743,0.000225,2]
[420878970,1776694283728,-2419.69,0.000225,7]
[420878971,1776694283738,-500.0,0.00022521,2]
[420878972,1776694283748,-502.0,0.00022531,9]
[420878973,1776694283757,-617.74059009,0.00022599,30]
[420878974,1776694283766,-3640.85972962,0.000226,2]
[420878975,1776694283776,-638.27,0.00022602,2]
[420878976,1776694283786,-234.21,0.00022603,2]
[420878977,1776694283795,-638.27,0.00022603,2]
[420878978,1776694283805,-570.35,0.0002261,2]
[420878979,1776694283814,-500.0,0.00022658,120]
[420878980,1776694283823,-162.0,0.00022702,3]
[420878981,1776694283832,-528.47154831,0.0002271,2]
[420878982,1776694283841,-927.0,0.00022741,2]
[420878983,1776694283851,-1219.0,0.00022741,2]
[420878984,1776694283860,-6030.0,0.00022741,2]
[420878985,1776694283870,-411.32441645,0.00022776,30]
[420878986,1776694283879,-133546.58,0.000228,7]
[420878987,1776694283889,-500.0,0.00022904,120]
[420878988,1776694283899,-617.74059009,0.0002298,30]
[420878989,1776694283908,-310862.33588272,0.00023,2]
[420878990,1776694283918,-630.49304064,0.00023,30]
[420878991,1776694283926,-1007.70032358,0.00023,2]
[420878992,1776694283936,-500.0,0.00023,2]
[420878993,1776694283945,-850.0,0.00023014,2]
[420878994,1776694283955,-850.0,0.00023014,2]
[420878995,1776694283965,-222.48994188,0.00023014,2]
[420878996,1776694283974,-622.0,0.00023094,2]
[420878997,1776694283984,-1349.0,0.00023094,2]
[420878998,1776694283993,-683.795,0.00023094,2]
[420878999,1776694284002,-2413.06375892,0.0002314,2]
[420879000,1776694284012,-1607.88498488,0.0002314,2]
[420879001,1776694284022,-411.32441645,0.00023145,30]
[420879002,1776694284032,-500.0,0.00023151,120]
[420879003,1776694284043,-11031.73,0.000232,7]
[420879004,1776694284052,-1216.11366906,0.000232,2]
[420879005,1776694284063,-151.0,0.00023227,2]
[420879006,1776694284073,-151.0,0.00023227,2]
[420879007,1776694284082,-151.0,0.00023227,2]
[420879008,1776694284092,-151.0,0.00023228,2]
[420879009,1776694284101,-151.0,0.00023228,2]
[420879010,1776694284111,-151.0,0.00023231,2]
[420879011,1776694284120,-151.0,0.00023232,2]
[420879012,1776694284130,-151.0,0.00023261,2]
[420879013,1776694284139,-151.0,0.00023261,2]
[420879014,1776694284149,-502.0,0.00023352,10]
[420879015,1776694284158,-617.74059009,0.00023361,30]
[420879016,1776694284168,-500.0,0.00023397,120]
[420879017,1776694284177,-3702.29,0.000234,7]
[420879018,1776694284186,-477.92,0.00023419,2]
[420879019,1776694284196,-183.38,0.00023439,2]
[420879020,1776694284205,-400.08464373,0.000235,2]
[420879021,1776694284215,-411.32441645,0.00023514,30]
[420879022,1776694284224,-950.0,0.00023562,2]
[420879023,1776694284234,-950.0,0.00023562,2]
[420879024,1776694284244,-1205.93,0.000236,7]
[420879025,1776694284254,-443.16,0.00023603,7]
[420879026,1776694284265,-794.47,0.00023624,2]
[420879027,1776694284274,-3000.0,0.00023624,7]
[420879028,1776694284284,-500.0,0.00023644,120]
[420879029,1776694284294,-617.74059009,0.00023743,30]
[420879030,1776694284303,-2000.0,0.000238,2]
[420879031,1776694284312,-443.16258285,0.00023816,7]
[420879032,1776694284322,-411.32441645,0.00023883,30]
[420879033,1776694284333,-500.0,0.0002389,120]
[420879034,1776694284343,-380.69,0.000239,2]
[420879035,1776694284352,-1032.70117569,0.00024,2]
[420879036,1776694284362,-3600.0,0.00024,2]
[420879037,1776694284371,-1248.58382221,0.00024,2]
[420879038,1776694284381,-4742.98142079,0.00024,2]
[420879039,1776694284390,-2419.69,0.00024,7]
[420879040,1776694284401,-133546.58,0.00024,7]
[420879041,1776694284411,-964.36971126,0.00024,2]
[420879042,1776694284420,-151.0,0.00024049,2]
[420879043,1776694284430,-151.0,0.00024052,2]
[420879044,1776694284440,-151.0,0.00024053,2]
[420879045,1776694284449,-151.0,0.00024054,2]
[420879046,1776694284459,-151.0,0.00024054,2]
[420879047,1776694284469,-151.0,0.00024063,2]
[420879048,1776694284479,-1050.0,0.0002411,2]
[420879049,1776694284489,-1050.0,0.0002411,2]
[420879050,1776694284498,-617.74059009,0.00024124,30]
[420879051,1776694284508,-500.0,0.00024137,120]
[420879052,1776694284517,-502.0,0.00024173,11]
[420879053,1776694284527,-2641.9,0.000242,2]
[420879054,1776694284536,-3177.51,0.000242,2]
[420879055,1776694284546,-3177.57,0.000242,2]
[420879056,1776694284556,-635.51,0.000242,2]
[420879057,1776694284565,-561.2,0.000242,2]
[420879058,1776694284575,-254.1,0.000242,2]
[420879059,1776694284585,-211.64,0.000242,2]
[420879060,1776694284594,-3736.98796781,0.0002421,2]
[420879061,1776694284603,-1069.83228894,0.00024249,2]
[420879062,1776694284613,-411.32441645,0.00024252,60]
[420879063,1776694284623,-500.0,0.00024384,120]
[420879064,1776694284632,-2200.0,0.00024446,7]
[420879065,1776694284642,-256.42,0.0002447,60]
[420879066,1776694284653,-617.74059009,0.00024505,60]
[420879067,1776694284662,-150.0,0.00024598,2]
[420879068,1776694284671,-11031.73,0.000246,7]
[420879069,1776694284681,-411.32441645,0.00024622,60]
[420879070,1776694284691,-398.60573351,0.0002463,2]
[420879071,1776694284700,-201.25,0.0002463,2]
[420879072,1776694284710,-162.0,0.0002463,2]
[420879073,1776694284719,-199.55,0.0002463,2]
[420879074,1776694284728,-197.9,0.0002463,2]
[420879075,1776694284738,-203.05,0.0002463,2]
[420879076,1776694284747,-150.25,0.0002463,2]
[420879077,1776694284757,-241.2,0.0002463,2]
[420879078,1776694284766,-187.2,0.0002463,2]
[420879079,1776694284775,-200.05,0.0002463,2]
[420879080,1776694284784,-229.9,0.0002463,2]
[420879081,1776694284794,-241.75,0.0002463,2]
[420879082,1776694284803,-500.0,0.0002463,120]
[420879083,1776694284813,-170.07619635,0.0002465,2]
[420879084,1776694284822,-1150.0,0.00024658,2]
[420879085,1776694284831,-1053.79007438,0.00024658,2]
[420879086,1776694284840,-1000.0,0.00024658,2]
[420879087,1776694284850,-996.33,0.00024658,2]
[420879088,1776694284859,-323.604907,0.00024658,2]
[420879089,1776694284869,-323.604907,0.00024658,2]
[420879090,1776694284878,-323.604907,0.00024658,2]
[420879091,1776694284888,-323.604907,0.00024658,2]
[420879092,1776694284899,-323.604907,0.00024658,2]
[420879093,1776694284908,-323.604907,0.00024658,2]
[420879094,1776694284917,-323.604907,0.00024658,2]
[420879095,1776694284927,-323.604907,0.00024658,2]
[420879096,1776694284936,-323.604907,0.00024658,2]
[420879097,1776694284946,-323.604907,0.00024658,2]
[420879098,1776694284955,-323.604907,0.00024658,2]
[420879099,1776694284964,-323.604907,0.00024658,2]
[420879100,1776694284974,-323.604907,0.00024658,2]
[420879101,1776694284984,-323.604907,0.00024658,2]
[420879102,1776694284993,-323.604907,0.00024658,2]
[420879103,1776694285002,-323.604907,0.00024658,2]
[420879104,1776694285012,-323.604907,0.00024658,2]
[420879105,1776694285021,-323.604907,0.00024658,2]
[420879106,1776694285031,-323.604907,0.00024658,2]
[420879107,1776694285041,-323.604909,0.00024658,2]
[420879108,1776694285050,-229.720983,0.00024658,2]
[420879109,1776694285059,-229.720983,0.00024658,2]
[420879110,1776694285069,-229.720983,0.00024658,2]
[420879111,1776694285078,-229.720983,0.00024658,2]
[420879112,1776694285087,-229.720983,0.00024658,2]
[420879113,1776694285097,-229.720983,0.00024658,2]
[420879114,1776694285106,-229.720983,0.00024658,2]
[420879115,1776694285115,-229.720983,0.00024658,2]
[420879116,1776694285125,-229.720983,0.00024658,2]
[420879117,1776694285135,-229.720983,0.00024658,2]
[420879118,1776694285145,-229.720983,0.00024658,2]
[420879119,1776694285156,-229.720983,0.00024658,2]
[420879120,1776694285166,-229.720983,0.00024658,2]
[420879121,1776694285175,-229.720983,0.00024658,2]
[420879122,1776694285185,-229.720983,0.00024658,2]
[420879123,1776694285194,-229.720983,0.00024658,2]
[420879124,1776694285205,-229.720983,0.00024658,2]
[420879125,1776694285214,-229.720983,0.00024658,2]
[420879126,1776694285223,-229.720983,0.00024658,2]
[420879127,1776694285233,-229.720979,0.00024658,2]
[420879128,1776694285243,-774.144536,0.00024658,2]
[420879129,1776694285252,-774.144536,0.00024658,2]
[420879130,1776694285262,-774.144536,0.00024658,2]
[420879131,1776694285272,-774.144536,0.00024658,2]
[420879132,1776694285282,-774.144536,0.00024658,2]
[420879133,1776694285292,-774.144536,0.00024658,2]
[420879134,1776694285301,-774.144536,0.00024658,2]
[420879135,1776694285311,-774.144536,0.00024658,2]
[420879136,1776694285320,-774.144536,0.00024658,2]
[420879137,1776694285329,-774.144536,0.00024658,2]
[420879138,1776694285339,-774.144536,0.00024658,2]
[420879139,1776694285348,-774.144536,0.00024658,2]
[420879140,1776694285357,-774.144536,0.00024658,2]
[420879141,1776694285367,-774.144536,0.00024658,2]
[420879142,1776694285376,-774.144536,0.00024658,2]
[420879143,1776694285386,-774.144536,0.00024658,2]
[420879144,1776694285395,-774.144536,0.00024658,2]
[420879145,1776694285406,-774.144536,0.00024658,2]
[420879146,1776694285415,-774.144536,0.00024658,2]
[420879147,1776694285425,-774.144526,0.00024658,2]
[420879148,1776694285434,-151.0,0.00024658,2]
[420879149,1776694285444,-151.0,0.00024658,2]
[420879150,1776694285453,-151.0,0.00024658,2]
[420879151,1776694285462,-151.0,0.00024658,2]
[420879152,1776694285472,-151.0,0.00024658,2]
[420879153,1776694285481,-151.0,0.00024658,2]
[420879154,1776694285491,-151.0,0.00024658,2]
[420879155,1776694285500,-173.890299,0.00024658,2]
[420879156,1776694285510,-150.0,0.00024658,2]
[420879157,1776694285519,-150.0,0.00024684,7]
[420879158,1776694285529,-3702.29,0.000247,7]
[420879159,1776694285538,-150.0,0.0002475,7]
[420879160,1776694285548,-450.0,0.0002475,7]
[420879161,1776694285557,-300.0,0.0002475,7]
[420879162,1776694285567,-2500.0,0.0002475,2]
[420879163,1776694285576,-1400.0,0.0002475,2]
[420879164,1776694285586,-1650.0,0.0002475,7]
[420879165,1776694285595,-750.0,0.0002475,2]
[420879166,1776694285604,-150.0,0.0002475,7]
[420879167,1776694285614,-2334.9,0.00024822,2]
[420879168,1776694285623,-151.0,0.00024871,2]
[420879169,1776694285632,-151.0,0.00024871,2]
[420879170,1776694285647,-151.0,0.00024871,2]
[420879171,1776694285657,-151.0,0.00024872,2]
[420879172,1776694285667,-151.0,0.00024874,2]
[420879173,1776694285676,-151.0,0.00024875,2]
[420879174,1776694285685,-332.33,0.00024876,2]
[420879175,1776694285695,-500.0,0.00024877,2]
[420879176,1776694285704,-500.0,0.00024877,120]
[420879177,1776694285714,-151.0,0.00024882,2]
[420879178,1776694285724,-617.74059009,0.00024886,60]
[420879179,1776694285734,-351086.785397,0.000249,2]
[420879180,1776694285743,-44600.0,0.0002499,2]
[420879181,1776694285753,-411.32441645,0.00024991,60]
[420879182,1776694285763,-502.0,0.00024994,12]
[420879183,1776694285772,-150.0,0.00025,2]
[420879184,1776694285782,-1000.0,0.00025,2]
[420879185,1776694285791,-150.0,0.00025,2]
[420879186,1776694285800,-150.0,0.00025,2]
[420879187,1776694285809,-150.0,0.00025,2]
[420879188,1776694285818,-150.0,0.00025,2]
[420879189,1776694285828,-150.0,0.00025,2]
[420879190,1776694285837,-150.0,0.00025,2]
[420879191,1776694285846,-150.0,0.00025,2]
[420879192,1776694285856,-150.0,0.00025,2]
[420879193,1776694285865,-151.467,0.00025,2]
[420879194,1776694285874,-1123.67497823,0.00025,2]
[420879195,1776694285884,-209.30698445,0.00025,2]
[420879196,1776694285893,-1800.49667907,0.00025,2]
[420879197,1776694285904,-2000.0,0.00025,2]
[420879198,1776694285913,-540.0,0.00025,2]
[420879199,1776694285923,-616.1105009,0.00025,2]
[420879200,1776694285932,-3070.04093228,0.00025,2]
[420879201,1776694285942,-7190.04974923,0.00025,2]
[420879202,1776694285951,-2219.23219449,0.00025,2]
[420879203,1776694285960,-168.74860559,0.00025,2]
[420879204,1776694285970,-3831.0997158,0.00025,2]
[420879205,1776694285979,-150.0,0.00025,2]
[420879206,1776694285988,-5868.38213936,0.00025,2]
[420879207,1776694285998,-380.69,0.00025,2]
[420879208,1776694286007,-10076.67379965,0.00025,2]
[420879209,1776694286017,-1000.0,0.00025,5]
[420879210,1776694286026,-1270.48,0.00025,10]
[420879211,1776694286036,-151.0,0.00025,2]
[420879212,1776694286045,-150.0,0.00025,2]
[420879213,1776694286054,-1049.0,0.00025,2]
[420879214,1776694286064,-550.0,0.00025,2]
[420879215,1776694286073,-568.11,0.00025068,2]
[420879216,1776694286083,-570.35,0.00025068,2]
[420879217,1776694286092,-183.38,0.00025078,2]
[420879218,1776694286102,-570.35,0.0002508,2]
[420879219,1776694286112,-500.0,0.00025123,120]
[420879220,1776694286121,-1250.0,0.00025205,2]
[420879221,1776694286131,-617.74059009,0.00025267,60]
[420879222,1776694286140,-1205.93,0.000253,7]
[420879223,1776694286150,-411.32441645,0.0002536,60]
[420879224,1776694286159,-500.0,0.0002537,120]
[420879225,1776694286169,-689.60668052,0.00025377,15]
[420879226,1776694286179,-1416.51464863,0.00025434,2]
[420879227,1776694286188,-794.47,0.00025441,2]
[420879228,1776694286198,-2513.0,0.00025479,10]
[420879229,1776694286208,-2419.69,0.000255,7]
[420879230,1776694286218,-234.21,0.00025548,2]
[420879231,1776694286227,-500.0,0.00025616,120]
[420879232,1776694286237,-617.74059009,0.00025649,60]
[420879233,1776694286248,-303.0342602,0.00025656,4]
[420879234,1776694286257,-638.27,0.00025691,2]
[420879235,1776694286267,-151.0,0.00025693,2]
[420879236,1776694286276,-638.27,0.00025693,2]
[420879237,1776694286286,-570.35,0.00025693,2]
[420879238,1776694286296,-570.35,0.00025695,2]
[420879239,1776694286306,-151.0,0.00025696,2]
[420879240,1776694286316,-568.11,0.00025698,2]
[420879241,1776694286326,-151.0,0.00025704,2]
[420879242,1776694286335,-183.38,0.00025707,2]
[420879243,1776694286345,-151.0,0.00025726,2]
[420879244,1776694286354,-411.32441645,0.00025729,60]
[420879245,1776694286364,-927.0,0.00025741,2]
[420879246,1776694286374,-1219.0,0.00025741,2]
[420879247,1776694286384,-6030.0,0.00025741,2]
[420879248,1776694286394,-1350.0,0.00025753,2]
[420879249,1776694286405,-500.0,0.00025794,120]
[420879250,1776694286415,-502.0,0.00025815,12]
[420879251,1776694286425,-3000.0,0.00025816,7]
[420879252,1776694286435,-500.0,0.00025863,120]
[420879253,1776694286444,-150.0,0.0002589,2]
[420879254,1776694286454,-477.92,0.00025898,2]
[420879255,1776694286463,-605.97908924,0.0002599,2]
[420879256,1776694286473,-11031.73,0.00026,7]
[420879257,1776694286482,-4561.60141907,0.00026,2]
[420879258,1776694286492,-218.31659116,0.00026,2]
[420879259,1776694286501,-158.0,0.00026,2]
[420879260,1776694286510,-151.0,0.00026,2]
[420879261,1776694286520,-2431.0,0.00026,2]
[420879262,1776694286530,-150.0,0.00026,3]
[420879263,1776694286540,-1049.0,0.00026,2]
[420879264,1776694286550,-200.0,0.00026027,2]
[420879265,1776694286560,-344.0,0.00026027,2]
[420879266,1776694286569,-617.74059009,0.0002603,60]
[420879267,1776694286579,-411.32441645,0.00026098,60]
[420879268,1776694286588,-500.0,0.0002611,120]
[420879269,1776694286597,-158.25,0.00026267,7]
[420879270,1776694286606,-1348.95056261,0.000263,2]
[420879271,1776694286615,-1450.0,0.00026301,2]
[420879272,1776694286624,-152.74,0.00026302,7]
[420879273,1776694286633,-500.0,0.00026356,120]
[420879274,1776694286642,-420.32310743,0.00026397,4]
[420879275,1776694286652,-27728.11038937,0.000264,2]
[420879276,1776694286662,-617.74059009,0.00026411,60]
[420879277,1776694286671,-411.32441645,0.00026467,120]
[420879278,1776694286680,-155.58780872,0.00026513,120]
[420879279,1776694286689,-151.0,0.00026515,2]
[420879280,1776694286698,-183.38,0.00026515,2]
[420879281,1776694286707,-151.0,0.00026515,2]
[420879282,1776694286716,-151.0,0.00026516,2]
[420879283,1776694286725,-332.33,0.00026517,2]
[420879284,1776694286734,-151.0,0.00026519,2]
[420879285,1776694286743,-151.0,0.00026519,2]
[420879286,1776694286752,-151.0,0.00026519,2]
[420879287,1776694286762,-568.12,0.0002652,2]
[420879288,1776694286771,-151.0,0.00026525,2]
[420879289,1776694286780,-570.35,0.00026529,2]
[420879290,1776694286790,-151.0,0.00026529,2]
[420879291,1776694286799,-500.0,0.00026603,120]
[420879292,1776694286808,-502.0,0.00026636,13]
[420879293,1776694286818,-2200.0,0.00026638,7]
[420879294,1776694286827,-256.42,0.00026705,60]
[420879295,1776694286837,-638.27,0.00026712,2]
[420879296,1776694286846,-183.38,0.00026727,2]
[420879297,1776694286855,-262.86543984,0.0002676,120]
[420879298,1776694286864,-320.86098963,0.0002678,5]
[420879299,1776694286874,-617.74059009,0.00026792,120]
[420879300,1776694286883,-1205.93,0.000268,7]
[420879301,1776694286892,-500.0,0.00026827,120]
[420879302,1776694286902,-411.32441645,0.00026837,120]
[420879303,1776694286912,-500.0,0.00026849,120]
[420879304,1776694286921,-1557.15028378,0.00026849,2]
[420879305,1776694286931,-165.0,0.00026923,120]
[420879306,1776694286940,-500.0,0.00027,2]
[420879307,1776694286949,-250.0,0.00027,2]
[420879308,1776694286959,-20000.0,0.00027,2]
[420879309,1776694286968,-1043.81799648,0.00027,2]
[420879310,1776694286978,-530.0,0.00027,2]